Cogmind - Beta 11 @@@ ROGUE MODE // 2022.04.03 @ 20:59:56 Player: Cipherpunk Result: Destroyed by D-53 Grenadier with Mini Grenade Launcher Performance ------------- Evolutions (0) 0 Regions Visited (4) 800 Robots Destroyed (12) 60 Value Destroyed (339) 339 Prototype IDs (1) 20 Alien Tech Used (0) 0 Bonus (360) 360 TOTAL SCORE: 1579 Bonus ------- Follower Combat Kills 60 Aligned with FarCom 300 Cogmind --------- Core Integrity 0/250 Matter 238/300 Energy 40/100 System Corruption 0% Temperature Cool (0) Movement Core (800) Ox15 Location -9/Mines Parts ------- > --- POWER (1) -------- (None) > --- PROPULSION (2) --- (None) > --- UTILITY (2) ------ High-capacity Storage Unit 0b10 Alert Chip > --- WEAPON (2) ------- EMP Blaster Mining Claw > --- INVENTORY (20) --- Light Nuclear Core Aluminum Leg Aluminum Leg Aluminum Leg Compact Wheel Compact Wheel Medium Storage Unit High-capacity Matter Pod (200) Structural Scanner Signal Interpreter Salvage Targeting Computer Salvage Targeting Computer Salvage Targeting Computer Salvage Targeting Computer Small Laser Small Laser Small Laser EMP Blaster Peak State ------------ > --- POWER ------------ Light Ion Engine > --- PROPULSION ------- Aluminum Leg Compact Wheel > --- UTILITY ---------- High-capacity Storage Unit 0b10 Alert Chip > --- WEAPON ----------- Rocket Launcher Mining Claw > --- INVENTORY -------- Light Nuclear Core Aluminum Leg Aluminum Leg Aluminum Leg Compact Wheel Compact Wheel Medium Storage Unit High-capacity Matter Pod Structural Scanner Signal Interpreter Salvage Targeting Computer Salvage Targeting Computer Salvage Targeting Computer Salvage Targeting Computer Small Laser Small Laser Small Laser EMP Blaster EMP Blaster [Rating: 15] Favorites ----------- Power Light Ion Engine Engine Light Ion Engine Propulsion Aluminum Leg Leg Aluminum Leg Wheel Wheel Utility High-capacity Storage Unit Device Heat Sink Storage High-capacity Storage Unit Processor 0b10 Alert Chip Weapon EM Pulse Gun Energy Gun EM Pulse Gun Launcher Rocket Launcher Special Weapon Mining Laser Slashing Weapon Mining Claw Build | -11 -10 -10 -10 -9 ------- Run | Scr Mat Min Exi Min Slots Evolved . | . . . . . Power . | . . . . . Propulsion . | . . . . . Utility . | . . . . . Weapon . | . . . . . Parts Attached 19 | . 11 3 2 3 Power 1 | . 1 . . . Engine 1 | . 1 . . . Core . | . . . . . Reactor . | . . . . . Propulsion 5 | . 3 1 1 . Treads . | . . . . . Leg 2 | . 1 1 . . Wheel 3 | . 2 . 1 . Hover . | . . . . . Flight . | . . . . . Utility 4 | . 2 1 1 . Device 2 | . 1 1 . . Storage 1 | . 1 . . . Processor 1 | . . . 1 . Hackware . | . . . . . Protection . | . . . . . Artifact . | . . . . . Weapon 9 | . 5 1 . 3 Energy Gun 3 | . 2 1 . . Energy Cannon . | . . . . . Ballistic Gun . | . . . . . Ballistic Cannon . | . . . . . Launcher 2 | . . . . 2 Special Weapon 1 | . 1 . . . Impact Weapon . | . . . . . Slashing Weapon 3 | . 2 . . 1 Piercing Weapon . | . . . . . Special Melee Weapon . | . . . . . Unidentified Prototypes 1 | . . . 1 . Parts Lost 6 | . 2 . . 4 Power 1 | . . . . 1 Propulsion 2 | . . . . 2 Utility . | . . . . . Weapon 3 | . 2 . . 1 Highest Loss Streak 4 | . 1 . . 4 To Critical Strikes . | . . . . . Average Slot Usage (%) 91 | . 90 100 91 92 Engine 13 | . 14 14 14 13 Leg 14 | . 14 14 14 13 Wheel 13 | . 13 14 14 13 Device 6 | . 5 14 8 . Storage 14 | . 14 14 14 14 Processor 2 | . . . 5 14 Energy Gun 19 | . 19 21 20 12 Slashing Weapon 5 | . 7 6 . 9 Naked Turns . | . . . . . Heaviest Build 49 | 12 48 47 46 49 Greatest Support 20 | 20 20 10 16 16 Greatest Overweight (x) 4 | . 4 4 4 3 Average Overweight (x) 3 | . 3 4 2 2 Largest Inventory Capacity 20 | 8 20 20 20 20 Average Capacity 19 | 8 19 20 20 20 Most Carried 20 | 6 20 20 20 20 Average Carried 18 | 6 17 20 19 19 Final Capacity 20 | 8 20 20 20 20 Final Carried 20 | 6 20 20 20 18 Class Distribution -------------------- 100% | Mutant Dominant Class ---------------- Mutant | -10/Materials Mutant | -10/Mines Mutant | -10/Exiles Mutant | -9/Mines Resources | -11 -10 -10 -10 -9 ----------- Run | Scr Mat Min Exi Min Matter Collected 762 | 187 508 . . 67 Remotely . | . . . . . Salvage Created 468 | . 462 . . 6 Parts 27 | . 27 . . . Haulers Intercepted . | . . . . . Recyclers Shooed . | . . . . . Parts Field Recycled . | . . . . . Retrieved Matter . | . . . . . Parts Self-Destructed . | . . . . . Prevented . | . . . . . Kills | -11 -10 -10 -10 -9 ------- Run | Scr Mat Min Exi Min Combat Hostiles Destroyed 14 | . 11 . . 3 Guns 8 | . 8 . . . AOE 4 | . 1 . . 3 Classes Destroyed 4 | . 3 . . 1 Worker 1 | . 1 . . . Swarmer 3 | . 3 . . . Grunt 8 | . 8 . . . Assembled 3 | . . . . 3 Best Kill Streak 3 | . 3 . . 3 Combat Bots Only 3 | . 3 . . 3 Max Kills in Single Turn 2 | . 1 . . 2 Gunslinging . | . . . . . Exploded 2 | . 1 . . 2 Melee . | . . . . . Uniques/NPCs Destroyed . | . . . . . Combat | -11 -10 -10 -10 -9 -------- Run | Scr Mat Min Exi Min Damage Taken 968 | . 498 73 . 397 Core 253 | . 128 29 . 96 Absorbed by Shields . | . . . . . Core Remaining (%) 100 | 100 . . . . Volleys Fired 49 | . 40 3 . 6 Largest 2 | . 2 2 . 1 Hottest 80 | . 80 80 . 33 Shots Fired 73 | . 61 6 . 6 Gun 67 | . 61 6 . . Cannon . | . . . . . Launcher 6 | . . . . 6 Special . | . . . . . Kinetic . | . . . . . Thermal 6 | . . 6 . . Explosive 5 | . . . . 5 Electromagnetic 62 | . 61 . . 1 Robot Hit Streak 10 | . 7 10 . 2 Robot Miss Streak 3 | . 3 . . 3 Penetration Max . | . . . . . Secondary Targets . | . . . . . Shots Hit Robots 47 | . 39 6 . 2 Core Hits 27 | . 15 1 . 11 Critical Kills . | . . . . . Critical Parts Destroyed . | . . . . . Critical Strikes 1 | . 1 . . . Corrupt 1 | . 1 . . . Melee Attacks 10 | . 10 . . . Impact . | . . . . . Slashing 10 | . 10 . . . Piercing . | . . . . . Sneak Attacks . | . . . . . Combat Hostiles . | . . . . . Follow-up Attacks . | . . . . . Damage Inflicted 1129 | . 557 67 . 505 Guns 592 | . 525 67 . . Cannons . | . . . . . Explosions 537 | . 32 . . 505 Melee . | . . . . . Ramming . | . . . . . Kinetic . | . . . . . Thermal 99 | . 32 67 . . Explosive 495 | . . . . 495 Electromagnetic 535 | . 525 . . 10 Impact . | . . . . . Slashing . | . . . . . Piercing . | . . . . . Highest Corruption . | . . . . . Average Corruption . | . . . . . Corruption Purged . | . . . . . Corruption Blocked . | . . . . . Overload Shots . | . . . . . Overflow Damage 7 | . . . . 7 Projectiles . | . . . . . Explosions 7 | . . . . 7 Melee . | . . . . . Knockbacks . | . . . . . Impact . | . . . . . Kinetic . | . . . . . Secondary . | . . . . . Self-Inflicted Damage 99 | . 30 . . 69 Shots 3 | . 1 . . 2 Rammed . | . . . . . Targets Rammed . | . . . . . Kicked . | . . . . . Crushed . | . . . . . Highest Temperature 235 | . 235 5 . . Average Temperature 70 | . 72 3 . . Received Heat Transfer 267 | . 222 45 . . Siege Activations . | . . . . . Robots Corrupted 2 | . 2 . . . Combat Hostiles 2 | . 2 . . . Parts Fried 4 | . 4 . . . Impact Corruptions . | . . . . . Robots Melted . | . . . . . Combat Hostiles . | . . . . . Parts Melted . | . . . . . Heat Transferred 200 | . 50 150 . . Parts Sabotaged . | . . . . . Parts Stolen . | . . . . . Parts Stripped . | . . . . . Power Chain Reactions 1 | . 1 . . . Missiles Intercepted . | . . . . . Alert | -11 -10 -10 -10 -9 ------- Run | Scr Mat Min Exi Min Peak Influence 197 | . 197 93 . 22 Initial 37 | . . 37 . . Average 65 | . 79 65 . 1 Maximum Alert Level . | . . . . . Low Security (%) 100 | 100 100 100 . 100 Level 1 . | . . . . . Level 2 . | . . . . . Level 3 . | . . . . . Level 4 . | . . . . . Level 5 . | . . . . . High Security . | . . . . . Max Security . | . . . . . Squads Dispatched 2 | . 2 . . . Investigation 2 | . 2 . . . Extermination . | . . . . . Reinforcement . | . . . . . Assault . | . . . . . Garrison . | . . . . . Intercept . | . . . . . Searches Triggered . | . . . . . Construction Impeded . | . . . . . Haulers Reinforced . | . . . . . Active Scanning Responses . | . . . . . Cargo Convoy Interrupts . | . . . . . Stealth | -11 -10 -10 -10 -9 --------- Run | Scr Mat Min Exi Min Distress Signals 2 | . 2 . . . Communications Jammed . | . . . . . Distress Signals . | . . . . . Times Spotted 41 | . 21 2 . 18 Peak Tracking Total 14 | . 4 2 . 14 Tactical Retreats 1 | . . . . 1 Traps | -11 -10 -10 -10 -9 ------- Run | Scr Mat Min Exi Min Traps Triggered 2 | . 2 . . . Indirectly . | . . . . . Trap Hack Attempts . | . . . . . Triggered . | . . . . . Disarmed . | . . . . . Reprogrammed . | . . . . . Reused . | . . . . . Traps Extracted . | . . . . . Installed . | . . . . . Triggered . | . . . . . Machines | -11 -10 -10 -10 -9 ---------- Run | Scr Mat Min Exi Min Machines Disabled 1 | . 1 . . . Max in Single Turn 1 | . 1 . . . Machines Sabotaged . | . . . . . Garrisons Compromised . | . . . . . Overloaded Fab Kills . | . . . . . Hacking | -11 -10 -10 -10 -9 --------- Run | Scr Mat Min Exi Min Machines Accessed 3 | . 1 . 2 . Terminals . | . . . . . Fabricators . | . . . . . Repair Stations . | . . . . . Recycling Units 1 | . 1 . . . Scanalyzers . | . . . . . Garrison Access . | . . . . . Total Hacks 15 | . 2 . 13 . Successful 13 | . . . 13 . Failed 2 | . 2 . . . Catastrophic . | . . . . . Database Lockouts . | . . . . . Manual 1 | . . . 1 . Terminals . | . . . . . Fabricators . | . . . . . Repair Stations . | . . . . . Recycling Units 2 | . 2 . . . Scanalyzers . | . . . . . Garrison Access . | . . . . . Terminal Hacks 13 | . . . 13 . Record 13 | . . . 13 . Fabricator Hacks . | . . . . . Repair Station Hacks . | . . . . . Recycling Unit Hacks . | . . . . . Scanalyzer . | . . . . . Garrison Access Hacks . | . . . . . Unauthorized Hacks . | . . . . . Terminals . | . . . . . Fabricators . | . . . . . Repair Stations . | . . . . . Recycling Units . | . . . . . Scanalyzers . | . . . . . Garrison Access . | . . . . . Data Cores Recovered . | . . . . . Used . | . . . . . Hacking Detections 1 | . 1 . . . Full Trace Events . | . . . . . Feedback Events . | . . . . . Feedback Blocked . | . . . . . Robot Schematics Acquired . | . . . . . Robots Built . | . . . . . Authchips . | . . . . . Time . | . . . . . Total Robot Build Rating . | . . . . . Part Schematics Acquired . | . . . . . Parts Built . | . . . . . Authchips . | . . . . . Time . | . . . . . Total Part Build Rating . | . . . . . Parts Repaired . | . . . . . Time . | . . . . . Parts Recycled . | . . . . . Recycled Matter . | . . . . . Retrieved Matter . | . . . . . Retrieved Components . | . . . . . Parts Scanalyzed . | . . . . . Part Schematics Acquired . | . . . . . Parts Damaged . | . . . . . Bothacking | -11 -10 -10 -10 -9 ------------ Run | Scr Mat Min Exi Min Used RIF Installer . | . . . . . Robots Hacked . | . . . . . Non-combat . | . . . . . Combat . | . . . . . Robot Hacks Applied . | . . . . . Relay Couplers Released . | . . . . . Fabnet Peak Effective % . | . . . . . Robots Rewired . | . . . . . Allies Hacked . | . . . . . Hacks Repelled . | . . . . . Allies | -11 -10 -10 -10 -9 -------- Run | Scr Mat Min Exi Min Total Allies 2 | . . 2 . . Largest Group 2 | . . 2 2 . Highest-Rated Group 53 | . . 53 53 . Highest-Rated Ally 31 | . . 31 31 . Total Orders . | . . . . . Ally Attacks 7 | . . 7 . . Total Damage 126 | . . 126 . . Kills 2 | . . 2 . . Allies Corrupted . | . . . . . Allies Melted . | . . . . . Intel | -11 -10 -10 -10 -9 ------- Run | Scr Mat Min Exi Min Robot Analysis Total . | . . . . . Derelict Logs Recovered 2 | . . 1 . 1 Drone Launches . | . . . . . Drone Recoveries . | . . . . . Exploration | -11 -10 -10 -10 -9 ------------- Run | Scr Mat Min Exi Min Turns Passed 1920 | 8 1062 161 466 223 Spaces Moved 1209 | 7 594 106 343 159 Core . | . . . . . Treads . | . . . . . Legs 24 | 7 17 . . . Wheels 1185 | . 577 106 343 159 Hover . | . . . . . Flight . | . . . . . Fastest Speed 120 | 120 120 140 130 130 Average Speed 136 | 120 139 140 134 130 Slowest Speed 145 | 120 140 140 140 145 Overloaded Moves . | . . . . . Propulsion Burnouts . | . . . . . Robots Hopped . | . . . . . Cave-ins Triggered . | . . . . . Exploration Rate (%) 40 | 3 65 26 61 49 Regions Visited 4 Branch Regions 3 Pre-discovered Areas . | . . . . . Known Exits Taken 1 | . . 1 . . Unknown Exits Taken 3 | 1 1 . 1 . Scrap Searched 2 | . . . . 2 Spaces Dug 4 | . 4 . . . Terrain Destroyed 35 | . 7 . . 28 Melee 4 | . 4 . . . Projectile . | . . . . . AOE 31 | . 3 . . 28 Terrain Rammed . | . . . . . Walls Destroyed . | . . . . . Machines Disabled . | . . . . . Actions | -11 -10 -10 -10 -9 --------- Run | Scr Mat Min Exi Min Total 1393 | 6 754 113 350 170 Wait 54 | . 54 . . . Move 1205 | 6 593 105 342 159 Hop . | . . . . . Pick Up 32 | . 30 . 1 1 Fast Attach 2 | . 1 . 1 . Attach 9 | . 6 . 1 2 Detach 3 | . 1 . 2 . Swap 8 | . 4 3 . 1 Drop 21 | . 15 2 3 1 Fire 49 | . 40 3 . 6 Melee 10 | . 10 . . . Ram . | . . . . . Kick . | . . . . . Crush . | . . . . . Escape Stasis . | . . . . . Rewire . | . . . . . Trap . | . . . . . Miscellaneous . | . . . . . Route ------- -11/Scrapyard -10/Materials (discovered 3 exits: [*Mat x2] / [*Min]) -10/Mines -10/Exiles -9/Mines History --------- Turn | Location | Event 1 | -11/Scrapyard | Discovered new exit (range 3) 9 | -11/Scrapyard | Entered Materials 163 | -10/Materials | Discovered new exit (range 14) 304 | -10/Materials | Build established: Mutant 632 | -10/Materials | Discovered new exit (range 6) 810 | -10/Materials | Core integrity fell below 50% 929 | -10/Materials | Discovered new exit (range 4) 1071 | -10/Materials | Entered Mines 1165 | -10/Mines | Identified exit to Exiles 1226 | -10/Mines | Deemed a non-threat by the Exiles lab entrance 1232 | -10/Mines | Entered Exiles 1232 | -10/Exiles | Accompanied by 2 allies 1262 | -10/Exiles | Led the pair of lost Derelicts to a safe place 1265 | -10/Exiles | Met 8R-AWN 1290 | -10/Exiles | Met EX-HEX 1340 | -10/Exiles | Met EX-BIN 1357 | -10/Exiles | Aligned with FarCom system 1358 | -10/Exiles | Given EX-Vault access code 1431 | -10/Exiles | Opened EX-Vault 1518 | -10/Exiles | Found Prototype Processor 1518 | -10/Exiles | Identified 0b10 Alert Chip 1544 | -10/Exiles | Warned to stay clear of 0b10 Research branches 1585 | -10/Exiles | Met EX-DEC 1680 | -10/Exiles | Discovered new exit (range 14) 1698 | -10/Exiles | Left Exiles lab with 0b10 Alert Chip 1698 | -10/Exiles | Entered Mines 1734 | -9/Mines | Learned location of 1 exit from Materials 1892 | -9/Mines | Assembled infested the area 1916 | -9/Mines | Core integrity fell below 20% 1921 | -9/Mines | Destroyed by D-53 Grenadier with Mini Grenade Launcher Last Messages --------------- 01892_ ALERT: Infestation in the mines, dispatching Demolisher response squad. 01910_ Com. Wheel destroyed. 01911_ Destroyed Asb. Hover Unit. 01911_ as-01664 destroyed. 01911_ as-13097 destroyed. 01912_ Lgt. Ion Engine destroyed. 01913_ Destroyed Asb. Hover Unit. 01913_ as-64722 destroyed. 01914_ The unstable cave ceiling collapses. 01915_ Knocked back. 01915_ Destroyed Asb. Hover Unit. 01916_ Aluminum Leg destroyed. 01917_ The unstable cave ceiling collapses. 01917_ Rocket Launcher destroyed. 01918_ as-71203 destroyed. 01920_ Knocked back. 01920_ Destroyed Asb. Hover Unit. 01921_ as-72845 destroyed. 01921_ as-58482 destroyed. Map ----- +----------------------------------------------------+ | | | ???????????????????????????????? | | ???????????????????????????????? | | ???????????????????????????????? | | ???????????????????????????????? | | ???????????????????????????????? | | ???????????????????????????????? | | ???????????????????????????????? | | ???????????????????????????????? | | ???????????????????????????????? | | ???????????????????????????????? | | ???????????????????????????????? | | ???????????????????????????????? | | ???????????????????????????????? | | ????????????????????####???????? | | ???????????????????## #??????? | | ?????????????#% ???# #?????? | | ?????????????# #?## #?????? | | ?????????????#a a## ##????? | | ??????????????# aa ###??? | | ???????????????# ##?? | | ????????????#### #?? | | ????????????# u a #?? | | ????????????## #??? | | ????????????# a #??? | | ???????????# @ #??? | | ???????????# a #??? | | ?????????? # #??? | | ????????????????# #??? | | ????????????????## ##??? | | ????????????????# # ##???? | | ????????????????###?# ##????? | | ????????????????????## ##?????? | | ?????????????????????# #??????? | | ?????????????????????# #??????? | | ?????????????????????# #??????? | | ?????????????????????#d #??????? | | ?????????????????????# #??????? | | ?????????????????????#d ####???? | | ??????????????###????# #???? | | ??????????????# ????# #???? | | ??????????????# #????# ## #???? | | ??????????????# #????# #? #???? | | ?????????????## ###### ## ##??? | | ?????????????# #??? | | ?????????????# ##??? | | ?????????????# ### ##???? | | ?????????????# #?# = ##????? | | ##????######## #?## !=##?????? | | #???## #??######??????? | +----------------------------------------------------+ Best States ------------- Heat Dissipation 39 Energy Generation 10 Energy Capacity 125 Matter Stores 300 Matter Capacity 300 Sight Range 16 Terrain Scan Density 10 Evasion (%) 55 Item Schematics ----------------- None Robot Schematics ------------------ None Fabricated ------------ Nothing Alien Tech Used ----------------- None Achievements -------------- None Challenges ------------ None Game ------ Seed MetafiberSkeletonBoosters Manual? 0 Play Time 00:21:56 Cumulative 131.8 hours Start 2022.04.03 @ 20:34:31 End 2022.04.03 @ 20:59:56 Sessions 1 Manual Loads 0 Difficulty Rogue Special Mode None Game No. 117 Rogue 117 Adventurer 0 Explorer 0 Win Type - Total 2 Types 2/0/0/0/0/0/0/0/0 Lore% 52 Gallery% 58 Achievement% 44 Wizard Run 0 Options --------- ASCII 0 Keyboard 1 Movement Numpad Keybinds 0 Fullscreen 2 Font 24/Cog Map View 76x50 Tactical HUD 1 Map Filters NONE Filters BRIGHTNESS(125)|SATURATION(100) Steam 1 RUN: 1d698cfb-43cb-481c-b19d-0d190bdb8f70